Cogmind - Beta 13 *** ADVENTURER MODE // 2024.04.18 @ 23:11:44 Player: SlyFyer Result: Smashed by cave-in Performance ------------- Evolutions (0) 0 Regions Visited (2) 400 Robots Destroyed (24) 120 Value Destroyed (442) 442 Prototype IDs (10) 200 Alien Tech Used (0) 0 Bonus (0) 0 TOTAL SCORE: 1162 Bonus ------- None Cogmind --------- Core Integrity 0/250 Matter 211/300 Energy 198/200 System Corruption 5% Temperature Cool (0) Movement Core (650) Ox12 Location -10/Subcaves Parts ------- > --- POWER (1) -------- Subdweller Power Source > --- PROPULSION (2) --- (None) > --- UTILITY (2) ------ Large Storage Unit Makeshift Light Armor Plating > --- WEAPON (2) ------- Subdweller Shrapnel Launcher > --- INVENTORY (15) --- Subdweller Monowheel Sensor Array Signal Interpreter Rainbow Chip EM Pulse Gun EM Pulse Gun Riot Gun Beam Cannon Assault Rifle Assault Rifle Battle Cannon Grenade Launcher Grenade Launcher Datajack Peak State ------------ > --- POWER ------------ Subdweller Power Source > --- PROPULSION ------- Wheel Subdweller Monowheel > --- UTILITY ---------- Large Storage Unit Makeshift Light Armor Plating > --- WEAPON ----------- Subdweller Shrapnel Launcher Mining Claw > --- INVENTORY -------- Sensor Array Signal Interpreter Rainbow Chip EM Pulse Gun EM Pulse Gun Riot Gun Beam Cannon Assault Rifle Assault Rifle Assault Rifle Assault Rifle Battle Cannon Grenade Launcher Grenade Launcher Datajack [Rating: 16] Favorites ----------- Power Subdweller Power Source Engine Subdweller Power Source Propulsion Wheel Wheel Wheel Utility Large Storage Unit Storage Large Storage Unit Protection Makeshift Light Armor Plating Weapon Assault Rifle Energy Gun Riot Gun Ballistic Gun Assault Rifle Launcher Subdweller Shrapnel Launcher Slashing Weapon Mining Claw Build | -11 -10 -10 ------- Run | Yrd Mat Sub Slots Evolved . | . . . Power . | . . . Propulsion . | . . . Utility . | . . . Weapon . | . . . Parts Attached 18 | 6 3 9 Power 3 | 1 . 2 Engine 3 | 1 . 2 Core . | . . . Reactor . | . . . Propulsion 6 | 2 2 2 Treads . | . . . Leg . | . . . Wheel 6 | 2 2 2 Hover . | . . . Flight . | . . . Utility 3 | 1 1 1 Device . | . . . Storage 2 | 1 1 . Processor . | . . . Hackware . | . . . Protection 1 | . . 1 Artifact . | . . . Weapon 6 | 2 . 4 Energy Gun 1 | . . 1 Energy Cannon . | . . . Ballistic Gun 2 | 2 . . Ballistic Cannon . | . . . Launcher 2 | . . 2 Special Weapon . | . . . Impact Weapon . | . . . Slashing Weapon 1 | . . 1 Piercing Weapon . | . . . Special Melee Weapon . | . . . Unidentified Prototypes . | . . . Parts Lost 5 | . 1 4 Power 1 | . 1 . Propulsion 3 | . . 3 Utility . | . . . Weapon 1 | . . 1 Highest Loss Streak 3 | . 1 3 To Critical Strikes . | . . . Average Slot Usage (%) 90 | . 81 95 Engine 12 | . 10 13 Wheel 26 | . 27 26 Storage 14 | . 14 14 Protection 7 | . . 11 Ballistic Gun 15 | . 28 8 Launcher 3 | . . 5 Slashing Weapon 8 | . . 13 Naked Turns . | . . . Heaviest Build 39 | 14 29 39 Greatest Support 32 | 32 32 30 Greatest Overweight (x) 3 | . 2 3 Average Overweight (x) 1 | . . 2 Largest Inventory Capacity 15 | 8 15 15 Average Capacity 13 | 7 12 15 Most Carried 15 | 5 12 15 Average Carried 12 | 1 7 14 Final Capacity 15 | 8 15 15 Final Carried 14 | . 12 14 Class Distribution -------------------- 100% | Mutant Dominant Class ---------------- Mutant | -10/Materials Mutant | -10/Subcaves Resources | -11 -10 -10 ----------- Run | Yrd Mat Sub Matter Collected 889 | 194 346 349 Remotely . | . . . Salvage Created 728 | . 509 219 Parts 52 | . 35 17 Haulers Intercepted 2 | . 2 . Recyclers Shooed . | . . . Parts Field Recycled . | . . . Retrieved Matter . | . . . Parts Self-Destructed 12 | . . 12 Prevented . | . . . Kills | -11 -10 -10 ------- Run | Yrd Mat Sub Combat Hostiles Destroyed 14 | . 9 5 Melee 3 | . . 3 Guns 10 | . 9 1 AOE 1 | . . 1 Classes Destroyed 6 | . 5 1 Worker 5 | . 5 . Hauler 2 | . 2 . Watcher 3 | . 3 . Swarmer 6 | . 6 . Grunt 3 | . 3 . Subdweller 5 | . . 5 Best Kill Streak 5 | . 5 3 Combat Bots Only 3 | . 3 3 Max Kills in Single Turn 2 | . 2 1 Gunslinging 1 | . 1 . Exploded 1 | . . 1 Melee 1 | . . 1 Uniques/NPCs Destroyed . | . . . Combat | -11 -10 -10 -------- Run | Yrd Mat Sub Hostile Shots Fired 78 | . 58 20 Missed 14 | . 10 4 Damage Taken 1033 | . 358 675 Core 274 | . 119 155 Absorbed by Shields . | . . . Ignored by Resistances 214 | . 118 96 Core Remaining (%) 100 | 100 . . Volleys Fired 77 | . 56 21 Largest 2 | . 2 2 Hottest 50 | . 40 50 Shots Fired 137 | . 112 25 Gun 124 | . 112 12 Cannon . | . . . Launcher 13 | . . 13 Special . | . . . Kinetic 134 | . 112 22 Thermal . | . . . Explosive . | . . . Electromagnetic 3 | . . 3 Robot Hit Streak 19 | . 17 19 Robot Miss Streak 4 | . 4 1 Penetration Max . | . . . Secondary Targets 3 | . 2 1 Max Gunslinging Chain 1 | . 1 1 Shots Hit Robots 98 | . 81 17 Core Hits 33 | . 25 8 Critical Kills . | . . . Critical Parts Destroyed 2 | . 2 . Critical Strikes 2 | . 2 . Destroy 2 | . 2 . Melee Attacks 12 | . . 12 Impact . | . . . Slashing 12 | . . 12 Piercing . | . . . Sneak Attacks . | . . . Combat Hostiles . | . . . Follow-up Attacks . | . . . Damage Inflicted 1456 | . 1040 416 Guns 1167 | . 1040 127 Cannons . | . . . Explosions 96 | . . 96 Melee 193 | . . 193 Ramming . | . . . Kinetic 1212 | . 1040 172 Thermal . | . . . Explosive . | . . . Electromagnetic 51 | . . 51 Impact . | . . . Slashing 193 | . . 193 Piercing . | . . . Highest Corruption . | . . . Average Corruption . | . . . Corruption Purged . | . . . Corruption Blocked . | . . . Overload Shots . | . . . Overflow Damage . | . . . Projectiles . | . . . Explosions . | . . . Melee . | . . . Knockbacks . | . . . Impact . | . . . Kinetic . | . . . Secondary . | . . . Self-Inflicted Damage 8 | . . 8 Shots 1 | . . 1 Rammed . | . . . Targets Rammed . | . . . Kicked . | . . . Crushed . | . . . Highest Temperature 15 | . 15 . Average Temperature 4 | . 4 . Received Heat Transfer 249 | . 183 66 Siege Activations . | . . . Robots Corrupted . | . . . Combat Hostiles . | . . . Parts Fried . | . . . Impact Corruptions . | . . . Robots Melted . | . . . Combat Hostiles . | . . . Parts Melted . | . . . Heat Transferred . | . . . Parts Sabotaged . | . . . Parts Stolen . | . . . Parts Stripped . | . . . Power Chain Reactions . | . . . Alert | -11 -10 -10 ------- Run | Yrd Mat Sub Peak Influence 221 | . 221 . Initial . | . . . Average 58 | . 61 . Maximum Alert Level 1 | . 1 . Low Security (%) 96 | 100 95 . Level 1 3 | . 4 . Level 2 . | . . . Level 3 . | . . . Level 4 . | . . . Level 5 . | . . . High Security . | . . . Max Security . | . . . Squads Dispatched . | . . . Investigation . | . . . Extermination . | . . . Reinforcement . | . . . Assault . | . . . Garrison . | . . . Intercept . | . . . Searches Triggered . | . . . Construction Impeded . | . . . Haulers Reinforced . | . . . Active Scanning Responses . | . . . Cargo Convoy Interrupts . | . . . Stealth | -11 -10 -10 --------- Run | Yrd Mat Sub Distress Signals 1 | . 1 . Communications Jammed . | . . . Distress Signals . | . . . Times Spotted 19 | . 13 6 Peak Tracking Total 4 | . 4 2 Tactical Retreats . | . . . Traps | -11 -10 -10 ------- Run | Yrd Mat Sub Traps Triggered 1 | . . 1 Indirectly . | . . . Trap Hack Attempts . | . . . Triggered . | . . . Disarmed . | . . . Reprogrammed . | . . . Reused . | . . . Traps Extracted . | . . . Installed . | . . . Triggered 3 | . . 3 Machines | -11 -10 -10 ---------- Run | Yrd Mat Sub Machines Disabled 2 | . 1 1 Max in Single Turn 1 | . 1 1 Machines Repaired . | . . . Machines Dismantled . | . . . Machines Sabotaged . | . . . Overloaded Fab Kills . | . . . Hacking | -11 -10 -10 --------- Run | Yrd Mat Sub Machines Accessed 6 | . 5 1 Terminals 5 | . 5 . Fabricators . | . . . Repair Stations . | . . . Recycling Units . | . . . Scanalyzers . | . . . Garrison Access . | . . . Total Hacks 19 | . 10 9 Successful 16 | . 7 9 Failed 3 | . 3 . Catastrophic 1 | . 1 . Database Lockouts . | . . . Manual 1 | . . 1 Terminals 10 | . 10 . Fabricators . | . . . Repair Stations . | . . . Recycling Units . | . . . Scanalyzers . | . . . Garrison Access . | . . . Terminal Hacks 16 | . 7 9 Record 9 | . 1 8 Robot Analysis 1 | . 1 . Emergency Access Points 1 | . 1 . Terminal Index 1 | . 1 . Recycling Unit Index 1 | . 1 . Locate Traps 1 | . 1 . Registered Components 1 | . 1 . Derelict Proto ID Bank 1 | . . 1 Fabricator Hacks . | . . . Repair Station Hacks . | . . . Recycling Unit Hacks . | . . . Scanalyzer . | . . . Garrison Access Hacks . | . . . Unauthorized Hacks . | . . . Terminals . | . . . Fabricators . | . . . Repair Stations . | . . . Recycling Units . | . . . Scanalyzers . | . . . Garrison Access . | . . . Data Cores Recovered . | . . . Used . | . . . Hacking Detections 3 | . 3 . Full Trace Events . | . . . Feedback Events . | . . . Feedback Blocked . | . . . Robot Schematics Acquired . | . . . Robots Built . | . . . Authchips . | . . . Time . | . . . Total Robot Build Rating . | . . . Part Schematics Acquired . | . . . Parts Built . | . . . Authchips . | . . . Time . | . . . Total Part Build Rating . | . . . Parts Repaired . | . . . Time . | . . . Parts Recycled . | . . . Recycled Matter . | . . . Retrieved Matter . | . . . Retrieved Components . | . . . Parts Scanalyzed . | . . . Part Schematics Acquired . | . . . Parts Damaged . | . . . Bothacking | -11 -10 -10 ------------ Run | Yrd Mat Sub Used RIF Installer . | . . . Robots Hacked . | . . . Non-combat . | . . . Combat . | . . . Robot Hacks Applied . | . . . Relay Couplers Released . | . . . Fabnet Peak Effective % . | . . . Robots Rewired . | . . . Allies Hacked . | . . . Hacks Repelled . | . . . Allies | -11 -10 -10 -------- Run | Yrd Mat Sub Total Allies . | . . . Largest Group . | . . . Highest-Rated Group . | . . . Highest-Rated Ally . | . . . Total Orders . | . . . Ally Attacks . | . . . Total Damage . | . . . Kills . | . . . Allies Corrupted . | . . . Allies Melted . | . . . Intel | -11 -10 -10 ------- Run | Yrd Mat Sub Robot Analysis Total 1 | . 1 . Derelict Logs Recovered 1 | . . 1 Drone Launches . | . . . Drone Recoveries . | . . . Exploration | -11 -10 -10 ------------- Run | Yrd Mat Sub Turns Passed 2602 | 44 939 1619 Spaces Moved 2069 | 41 755 1273 Core 16 | 16 . . Treads . | . . . Legs . | . . . Wheels 2053 | 25 755 1273 Hover . | . . . Flight . | . . . Fastest Speed 50 | 50 95 95 Average Speed 110 | 80 99 118 Slowest Speed 125 | 100 110 125 Overloaded Moves . | . . . Propulsion Burnouts . | . . . Robots Hopped . | . . . Cave-ins Triggered 1 | . . 1 Exploration Rate (%) 45 | 3 97 37 Regions Visited 2 Branch Regions 1 Pre-discovered Areas 2 | . . 2 Known Exits Taken . | . . . Unknown Exits Taken 2 | 1 1 . Scrap Searched 4 | . . 4 Spaces Dug 25 | . . 25 Terrain Destroyed 144 | . . 144 Melee . | . . . Projectile . | . . . AOE 144 | . . 144 Terrain Rammed . | . . . Walls Destroyed . | . . . Machines Disabled . | . . . Actions | -11 -10 -10 --------- Run | Yrd Mat Sub Total 2213 | 51 835 1327 Wait 5 | . 4 1 Move 2066 | 40 754 1272 Hop . | . . . Pick Up 27 | 5 15 7 Fast Attach 2 | 1 . 1 Attach 9 | 5 2 2 Detach . | . . . Swap 7 | . 1 6 Drop 8 | . 3 5 Fire 77 | . 56 21 Melee 12 | . . 12 Ram . | . . . Kick . | . . . Crush . | . . . Escape Stasis . | . . . Rewire . | . . . Trap . | . . . Miscellaneous . | . . . Route ------- -11/Scrapyard -10/Materials (discovered 6 exits: [*Mat x3] / [*Min x2] / *Sub) -10/Subcaves History --------- Turn | Location | Event 7 | -11/Scrapyard | Discovered new exit (range 15) 45 | -11/Scrapyard | Entered Materials 101 | -10/Materials | Discovered new exit (range 7) 312 | -10/Materials | Build established: Mutant 324 | -10/Materials | Discovered new exit (range 13) 423 | -10/Materials | Discovered new exit (range 11) 562 | -10/Materials | Discovered new exit (range 8) 863 | -10/Materials | Discovered new exit (range 15) 977 | -10/Materials | Discovered new exit (range 9) 984 | -10/Materials | Entered Subcaves 1030 | -10/Subcaves | Core integrity fell below 50% 1039 | -10/Subcaves | Shifting Twisted Machinery released Spk. Treads 1078 | -10/Subcaves | Shifting Twisted Machinery released Battle Cannon 1193 | -10/Subcaves | Learned location of Zion (-7) 1193 | -10/Subcaves | Met a Zionite searching for "candidates" 1202 | -10/Subcaves | Learned location of Storage (-9) 1277 | -10/Subcaves | Visited 4L-MR0's lab 1300 | -10/Subcaves | Found Rainbow Chip 1410 | -10/Subcaves | A swath of the cavern ceiling suddenly collapsed 1461 | -10/Subcaves | A swath of the cavern ceiling suddenly collapsed 2526 | -10/Subcaves | Ambushed by Subdweller buried in earth 2563 | -10/Subcaves | Ambushed by Subdweller buried in earth 2587 | -10/Subcaves | Ambushed by Subdweller buried in earth 2603 | -10/Subcaves | Crushed by falling debris 2603 | -10/Subcaves | Smashed by cave-in Last Messages --------------- 02588_ ME-6YZ(R): "THANKSYOU!" 02588_ DM-LIU(R): "ARGHSUB!" 02589_ ME-6YZ(R) destroyed. 02590_ The unstable cave ceiling collapses. 02590_ Scrap Shield Fragment crushed. 02592_ Subatomizers dissect the Sub. Optics. 02593_ DM-LIU(R) affixes Scrap Shield Fragment to Scrap Shield. 02594_ DM-LIU(R) destroyed. 02597_ Acquired 44 matter. 02600_ Dropped Assault Rifle. 02601_ The unstable cave ceiling collapses. 02601_ Dropped Assault Rifle. 02602_ Acquired Sub. Monowheel. 02603_ The unstable cave ceiling collapses. 02603_ Crushed by falling debris. 02603_ Wheel destroyed. 02603_ System corrupted by crushing effect (+2). 02603_ Sub. Monowheel destroyed. 02603_ Mining Claw destroyed. 02603_ System corrupted by crushing effect (+3). Map ----- +----------------------------------------------------+ | #????# #??????????????????????????? | | #### #???## #??????????????????????????? | | #??## #???# #??????????????????????????? | | #??## ##??# #??????????????????????????? | | ## #### #### ##??????????????????????????? | | ## ##??????????????????????????? | | # #??????????????????????????? | | # ### #??????????????????????????? | | ##?# #??????????????????????????? | | ##??# #??????????????????????????? | | ###??## ##??????????????????????????? | | #????# #??????????????????????????? | | #????# ##??????????????????????????? | | ## #????## #???????????????????????????? | | ##### & ##????# #???????????????????????????? | | ##??## & ###??# #???????????????????????????? | | #?### = "#??# #???????????????????????????? | | ### #### ""#### ###?????????????????????????? | | ### ##??# """#; ##????????????????????????? | | ### #???# # ##???????????????????????? | | "" #???# ##??????????????????????? | | ##???# ##?????????????????????? | | #????## =!& ##????????????????????? | | ##????######; #&#[* ###??????????????????? | | ##????????# *&& ###????????????????? | | #######??### [ @ &; #????????????????? | | ###??### [ !%[ #??????????? | | "#### #????## &; ##??????????? | | #""#??# #?????## ; ##???????????? | | #####??## ##??????# ; ##????????????? | | ????????########???????## ; ##?????????????? | | ????????????????????????##### ## ##??????????????? | | ?????????????????????????????##?##???????????????? | | ?????????????????????????????????????????????????? | | ?????????????????????????????????????????????????? | | ?????????????????????????????????????????????????? | | ?????????????????????????????????????????????????? | | ?????????????????????????????????????????????????? | | ?????????????????????????????????????????????????? | | ?????????????????????????????????????????????????? | | ?????????????????????????????????????????????????? | | ?????????????????????????????????????????????????? | | ?????????????????????????????????????????????????? | | ?????????????????????????????????????????????????? | | ?????????????????????????????????????????????????? | | ?????????????????????????????????????????????????? | | ?????????????????????????????????????????????????? | | ?????????????????????????????????????????????????? | | ?????????????????????????????????????????????????? | | ?????????????????????????????????????????????????? | +----------------------------------------------------+ Best States ------------- Heat Dissipation 25 Energy Generation 15 Energy Capacity 250 Matter Stores 300 Matter Capacity 300 Sight Range 16 Terrain Scan Density 10 Armor Coverage 100 Resistance: KI 20 Resistance: TH 20 Resistance: EX 20 Resistance: EM 20 Resistance: I 20 Resistance: S 20 Resistance: P 20 Evasion (%) 50 Offensive Hacking 10 Item Schematics ----------------- None Robot Schematics ------------------ None Fabricated ------------ Nothing Alien Tech Used ----------------- None Achievements -------------- None Challenges ------------ None Game ------ Seed CloakRagnarokWand Manual? 0 Play Time 00:20:10 Cumulative 47.8 hours Start 2024.04.18 @ 21:52:55 End 2024.04.18 @ 23:11:44 Sessions 2 Manual Loads 0 Difficulty Adventurer Special Mode None Game No. 22 Rogue 0 Adventurer 22 Explorer 0 Win Type - Total 2 Types 1/1/0/0/0/0/0/0/0 Lore% 35 Gallery% 49 Achievement% 43 Wizard Run 0 Options --------- Layout 0 ASCII 0 Keyboard 0 Movement Mouse Keybinds 0 Fullscreen 1 Font 18/SmallcapsGlow Map View 76x50 Zoom Use 0% Tactical HUD 1 Map Filters NONE Filters NONE Steam 1 RUN: d3dd9140-136a-4158-a150-201c14c379b0